Cogmind - Beta 13 @@@ ROGUE MODE // 2024.05.14 @ 19:42:30 Player: na-3J Result: Destroyed by G-34 Mercenary with Small Laser Performance ------------- Evolutions (1) 500 Regions Visited (2) 400 Robots Destroyed (26) 130 Value Destroyed (686) 686 Prototype IDs (0) 0 Alien Tech Used (0) 0 Bonus (0) 0 TOTAL SCORE: 1716 Bonus ------- None Cogmind --------- Core Integrity 0/400 Matter 98/300 Energy 100/100 System Corruption 2% Temperature Warm (142) Movement Core (50) Location -9/Materials Parts ------- > --- POWER (1) -------- (None) > --- PROPULSION (2) --- (None) > --- UTILITY (3) ------ (None) > --- WEAPON (3) ------- (None) > --- INVENTORY (5) ---- Large Battery (200) Large Matter Pod (150) Peak State ------------ > --- POWER ------------ Reinforced Ion Engine > --- PROPULSION ------- Light Treads > --- UTILITY ---------- Sensor Array Seismic Detector > --- WEAPON ----------- Flak Cannon Flak Cannon Flak Cannon > --- INVENTORY -------- Large Battery Large Matter Pod [Rating: 14] Favorites ----------- Power Light Nuclear Core Engine Light Ion Engine Power Core Light Nuclear Core Propulsion Wheel Treads Light Treads Leg Aluminum Leg Wheel Wheel Utility Seismic Detector Device Seismic Detector Storage Huge Storage Unit Processor Improved Targeting Computer Protection Light Armor Plating Weapon EM Pulse Gun Energy Gun EM Pulse Gun Ballistic Cannon Flak Cannon Build | -11 -10 -9 ------- Run | Yrd Mat Mat Slots Evolved 2 | . . 2 Power . | . . . Propulsion . | . . . Utility 1 | . . 1 Weapon 1 | . . 1 Parts Attached 29 | 5 15 9 Power 4 | 1 2 1 Engine 3 | 1 1 1 Core 1 | . 1 . Reactor . | . . . Propulsion 6 | 2 2 2 Treads 2 | . . 2 Leg 2 | . 2 . Wheel 2 | 2 . . Hover . | . . . Flight . | . . . Utility 9 | . 7 2 Device 3 | . 2 1 Storage 2 | . 2 . Processor 1 | . . 1 Hackware . | . . . Protection 3 | . 3 . Artifact . | . . . Weapon 10 | 2 4 4 Energy Gun 7 | 2 4 1 Energy Cannon . | . . . Ballistic Gun . | . . . Ballistic Cannon 3 | . . 3 Launcher . | . . . Special Weapon . | . . . Impact Weapon . | . . . Slashing Weapon . | . . . Piercing Weapon . | . . . Special Melee Weapon . | . . . Unidentified Prototypes . | . . . Parts Lost 14 | . 1 13 Power 3 | . 1 2 Propulsion 2 | . . 2 Utility 3 | . . 3 Weapon 6 | . . 6 Highest Loss Streak 6 | . 1 6 To Critical Strikes . | . . . Average Slot Usage (%) 86 | . 85 87 Engine 2 | . 3 1 Core 5 | . 4 7 Treads 6 | . . 17 Leg 5 | . 8 2 Wheel 10 | . 16 . Device 9 | . 3 20 Storage 6 | . 10 . Processor 2 | . . 5 Protection 9 | . 13 1 Energy Gun 25 | . 25 26 Ballistic Cannon 1 | . . 3 Naked Turns 8 | . . 8 Heaviest Build 90 | 7 90 30 Greatest Support 40 | 20 20 40 Greatest Overweight (x) 29 | . 29 9 Average Overweight (x) 1 | . 2 . Largest Inventory Capacity 25 | 5 25 5 Average Capacity 13 | 5 19 5 Most Carried 15 | 4 15 5 Average Carried 6 | 1 8 4 Final Capacity 5 | 5 5 5 Final Carried 4 | 4 2 2 Class Distribution -------------------- 50% | Mutant 19% | Scavenger-Mutant 16% | Scavenger-Gunner 10% | Scavenger-Skirmisher 3% | Skirmisher Dominant Class ---------------- Mutant | -10/Materials Scavenger-Gunner | -9/Materials Resources | -11 -10 -9 ----------- Run | Yrd Mat Mat Matter Collected 680 | 250 238 192 Remotely . | . . . Salvage Created 994 | 70 215 709 Parts 69 | 8 13 48 Haulers Intercepted 1 | . . 1 Recyclers Shooed . | . . . Parts Field Recycled . | . . . Retrieved Matter . | . . . Parts Self-Destructed . | . . . Prevented . | . . . Kills | -11 -10 -9 ------- Run | Yrd Mat Mat Combat Hostiles Destroyed 16 | 1 4 11 Melee 1 | . 1 . Guns 10 | . 3 7 Cannons 4 | . . 4 AOE 1 | 1 . . Classes Destroyed 9 | 2 2 5 Worker 3 | . 1 2 Tunneler 2 | 2 . . Hauler 1 | . . 1 Recycler 1 | . . 1 Operator 1 | . 1 . Watcher 2 | . . 2 Grunt 11 | 1 4 6 Brawler 1 | . . 1 Sentry 4 | . . 4 Best Kill Streak 9 | 3 2 9 Combat Bots Only 4 | 1 2 4 Max Kills in Single Turn 2 | 2 1 2 Gunslinging . | . . . Exploded 1 | 1 . . Melee 1 | . 1 . Uniques/NPCs Destroyed . | . . . Combat | -11 -10 -9 -------- Run | Yrd Mat Mat Hostile Shots Fired 173 | 1 18 154 Missed 48 | 1 7 40 Damage Taken 1690 | 38 179 1473 Core 437 | 19 12 406 Absorbed by Shields . | . . . Core Remaining (%) 89 | 92 87 . Volleys Fired 52 | 5 22 25 Largest 3 | 2 2 3 Hottest 132 | 80 80 132 Shots Fired 107 | 10 35 62 Gun 77 | 10 35 32 Cannon 30 | . . 30 Launcher . | . . . Special . | . . . Kinetic 30 | . . 30 Thermal 13 | . . 13 Explosive . | . . . Electromagnetic 64 | 10 35 19 Robot Hit Streak 8 | 3 4 8 Robot Miss Streak 11 | 2 3 11 Penetration Max . | . . . Secondary Targets . | . . . Shots Hit Robots 72 | 7 20 45 Core Hits 59 | 3 8 48 Critical Kills . | . . . Critical Parts Destroyed . | . . . Critical Strikes 1 | . 1 . Corrupt 1 | . 1 . Melee Attacks . | . . . Impact . | . . . Slashing . | . . . Piercing . | . . . Sneak Attacks . | . . . Combat Hostiles . | . . . Follow-up Attacks . | . . . Damage Inflicted 1515 | 199 477 839 Guns 633 | 90 272 271 Cannons 529 | . . 529 Explosions 300 | 109 154 37 Melee . | . . . Ramming 53 | . 51 2 Kinetic 529 | . . 529 Thermal 390 | 109 154 127 Explosive . | . . . Electromagnetic 543 | 90 272 181 Impact . | . . . Slashing . | . . . Piercing . | . . . Highest Corruption 2 | . 2 2 Average Corruption 1 | . 1 1 Corruption Purged . | . . . Corruption Blocked . | . . . Effects 9 | . 5 4 Message Errors 1 | . 1 . Matter Fused 3 | . 2 1 Energy Discharges 1 | . . 1 Data Loss (minor) 2 | . 1 1 Alerts 1 | . 1 . Weapon Failures 1 | . . 1 Overload Shots . | . . . Overflow Damage 21 | 1 20 . Projectiles . | . . . Explosions 21 | 1 20 . Melee . | . . . Knockbacks 9 | . 1 8 Impact 1 | . 1 . Kinetic 8 | . . 8 Secondary . | . . . Self-Inflicted Damage 103 | 38 65 . Shots 2 | 1 1 . Rammed 5 | . 4 1 Targets Rammed 5 | . 4 1 Kicked . | . . . Crushed . | . . . Highest Temperature 578 | 54 72 578 Average Temperature 132 | 24 22 199 Received Heat Transfer 717 | . 66 651 Effects 12 | . . 12 Shutdowns 3 | . . 3 Energy Bleed 1 | . . 1 Matter Decay 1 | . . 1 Short Circuit 1 | . . 1 Damage (minor) 1 | . . 1 Damage (major) 5 | . . 5 Siege Activations . | . . . Robots Corrupted . | . . . Combat Hostiles . | . . . Parts Fried . | . . . Impact Corruptions . | . . . Robots Melted . | . . . Combat Hostiles . | . . . Parts Melted . | . . . Heat Transferred 650 | 150 250 250 Parts Sabotaged . | . . . Parts Stolen . | . . . Parts Stripped . | . . . Power Chain Reactions 5 | 2 2 1 Alert | -11 -10 -9 ------- Run | Yrd Mat Mat Peak Influence 204 | 30 153 204 Initial 64 | . 19 64 Average 79 | 6 64 116 Maximum Alert Level 1 | . . 1 Low Security (%) 99 | 100 100 97 Level 1 . | . . 2 Level 2 . | . . . Level 3 . | . . . Level 4 . | . . . Level 5 . | . . . High Security . | . . . Max Security . | . . . Squads Dispatched 5 | . 5 . Investigation 3 | . 3 . Extermination . | . . . Reinforcement 2 | . 2 . Assault . | . . . Garrison . | . . . Intercept . | . . . Searches Triggered . | . . . Construction Impeded . | . . . Haulers Reinforced . | . . . Active Scanning Responses . | . . . Cargo Convoy Interrupts . | . . . Stealth | -11 -10 -9 --------- Run | Yrd Mat Mat Distress Signals 2 | . 1 1 Communications Jammed . | . . . Distress Signals . | . . . Times Spotted 31 | 1 8 22 Peak Tracking Total 9 | 1 2 9 Tactical Retreats 1 | . . 1 Traps | -11 -10 -9 ------- Run | Yrd Mat Mat Traps Triggered 4 | . 4 . Indirectly . | . . . Trap Hack Attempts . | . . . Triggered . | . . . Disarmed . | . . . Reprogrammed . | . . . Reused . | . . . Traps Extracted . | . . . Installed . | . . . Triggered 1 | . 1 . Machines | -11 -10 -9 ---------- Run | Yrd Mat Mat Machines Disabled 1 | . 1 . Max in Single Turn 1 | . 1 . Machines Repaired . | . . . Machines Dismantled . | . . . Machines Sabotaged . | . . . Overloaded Fab Kills . | . . . Hacking | -11 -10 -9 --------- Run | Yrd Mat Mat Machines Accessed 5 | . 4 1 Terminals 4 | . 3 1 Fabricators . | . . . Repair Stations . | . . . Recycling Units 1 | . 1 . Scanalyzers . | . . . Garrison Access . | . . . Total Hacks 22 | . 18 4 Successful 13 | . 10 3 Failed 9 | . 8 1 Catastrophic 1 | . 1 . Database Lockouts . | . . . Manual . | . . . Terminals 18 | . 14 4 Fabricators . | . . . Repair Stations . | . . . Recycling Units 4 | . 4 . Scanalyzers . | . . . Garrison Access . | . . . Terminal Hacks 10 | . 7 3 Record 8 | . 6 2 Emergency Access Points 1 | . 1 . Zone Layout 1 | . . 1 Fabricator Hacks . | . . . Repair Station Hacks . | . . . Recycling Unit Hacks 3 | . 3 . Recycle Component 3 | . 3 . Scanalyzer . | . . . Garrison Access Hacks . | . . . Unauthorized Hacks . | . . . Terminals . | . . . Fabricators . | . . . Repair Stations . | . . . Recycling Units . | . . . Scanalyzers . | . . . Garrison Access . | . . . Data Cores Recovered . | . . . Used . | . . . Hacking Detections 5 | . 4 1 Full Trace Events 4 | . 3 1 Feedback Events 1 | . . 1 Corruption 1 | . . 1 Feedback Blocked . | . . . Robot Schematics Acquired . | . . . Robots Built . | . . . Authchips . | . . . Time . | . . . Total Robot Build Rating . | . . . Part Schematics Acquired . | . . . Parts Built . | . . . Authchips . | . . . Time . | . . . Total Part Build Rating . | . . . Parts Repaired . | . . . Time . | . . . Parts Recycled 3 | . 3 . Recycled Matter . | . . . Retrieved Matter . | . . . Retrieved Components . | . . . Parts Scanalyzed . | . . . Part Schematics Acquired . | . . . Parts Damaged . | . . . Bothacking | -11 -10 -9 ------------ Run | Yrd Mat Mat Used RIF Installer . | . . . Robots Hacked . | . . . Non-combat . | . . . Combat . | . . . Robot Hacks Applied . | . . . Relay Couplers Released . | . . . Fabnet Peak Effective % . | . . . Robots Rewired . | . . . Allies Hacked . | . . . Hacks Repelled . | . . . Allies | -11 -10 -9 -------- Run | Yrd Mat Mat Total Allies . | . . . Largest Group . | . . . Highest-Rated Group . | . . . Highest-Rated Ally . | . . . Total Orders . | . . . Ally Attacks . | . . . Total Damage . | . . . Kills . | . . . Allies Corrupted . | . . . Allies Melted . | . . . Intel | -11 -10 -9 ------- Run | Yrd Mat Mat Robot Analysis Total . | . . . Derelict Logs Recovered . | . . . Drone Launches . | . . . Drone Recoveries . | . . . Exploration | -11 -10 -9 ------------- Run | Yrd Mat Mat Turns Passed 1642 | 85 976 581 Spaces Moved 923 | 79 547 297 Core 35 | 23 9 3 Treads 250 | . . 250 Legs 236 | . 192 44 Wheels 402 | 56 346 . Hover . | . . . Flight . | . . . Fastest Speed 50 | 50 80 120 Average Speed 149 | 71 156 158 Slowest Speed 1500 | 80 1500 500 Overloaded Moves . | . . . Propulsion Burnouts . | . . . Robots Hopped . | . . . Cave-ins Triggered . | . . . Exploration Rate (%) 34 | 5 65 33 Regions Visited 2 Branch Regions . Pre-discovered Areas . | . . . Known Exits Taken . | . . . Unknown Exits Taken 2 | 1 1 . Scrap Searched . | . . . Spaces Dug . | . . . Terrain Destroyed 8 | . 6 2 Melee . | . . . Projectile . | . . . AOE 8 | . 6 2 Terrain Rammed . | . . . Walls Destroyed . | . . . Machines Disabled . | . . . Actions | -11 -10 -9 --------- Run | Yrd Mat Mat Total 1093 | 97 637 359 Wait 18 | . 7 11 Move 921 | 78 546 297 Hop . | . . . Pick Up 45 | 9 25 11 Fast Attach . | . . . Attach 20 | 5 9 6 Detach . | . . . Swap 9 | . 6 3 Drop 23 | . 18 5 Fire 52 | 5 22 25 Melee . | . . . Ram 4 | . 4 . Kick . | . . . Crush 1 | . . 1 Escape Stasis . | . . . Rewire . | . . . Trap . | . . . Miscellaneous . | . . . Route ------- -11/Scrapyard -10/Materials (discovered 4 exits: *Mat x2 / [*Min x2]) -9/Materials (discovered 2 exits: [*Min x2]) History --------- Turn | Location | Event 2 | -11/Scrapyard | Met Revision 17 62 | -11/Scrapyard | Discovered new exit (range 8) 86 | -11/Scrapyard | Entered Materials 176 | -10/Materials | Discovered new exit (range 13) 315 | -10/Materials | Build established: Mutant 415 | -10/Materials | Discovered new exit (range 5) 691 | -10/Materials | Discovered new exit (range 16) 1051 | -10/Materials | Discovered new exit (range 8) 1062 | -10/Materials | Entered another Materials area 1062 | -9/Materials | Evolved 2 slots: Utility x1, Weapon x1 1079 | -9/Materials | Discovered new exit (range 12) 1463 | -9/Materials | Discovered new exit (range 7) 1618 | -9/Materials | Lost 5 parts (2n3w) 1627 | -9/Materials | Core integrity fell below 50% 1642 | -9/Materials | Core integrity fell below 20% 1643 | -9/Materials | Destroyed by G-34 Mercenary with Small Laser Last Messages --------------- Overheating: Energy bleed (-26). K-01 Serf collects debris. Flak Cannon destroyed. Overheating: Matter decay (-27). Rnf. Ion Engine destroyed. K-01 Serf collects debris. Y-45 Defender destroyed. K-01 Serf collects debris. R-06 Scavenger collects Aluminum Leg. Seismic Detector destroyed. Flak Cannon destroyed. L-31 Rogue knocked back. Flak Cannon destroyed. R-06 Scavenger collects Lgt. Nuclear Core. K-01 Serf collects debris. Broken Sensor Array destroyed. R-06 Scavenger collects Lgt. Ion Engine. K-01 Serf collects debris. R-06 Scavenger collects Prototype Energy Gun. K-01 Serf collects debris. Map ----- +----------------------------------------------------+ | ?????????????????????????????????????????????????? | | ?????????????????????????????????????????????????? | | ?????????????????????????????????????????????????? | | ?????????????????????????????????????????????????? | | ?????????????????????????????????????????????????? | | ?????????????????????????????????????????????????? | | ?????????????????????????????????????????????????? | | ?????????????????????????????????????????????????? | | ?????????????????????????????????????????????????? | | ?????????????????????????????????????????????????? | | ?????????????????????????????????????????????????? | | ?????????????????????????????????????????????????? | | ?????????????????????????????????????????????????? | | ?????????????????????????????????????????????????? | | ?????????????????????????????????????????????????? | | ??????????#####??????????????????????????????????? | | ??????????# ?????????????????????????????????? | | ??????????# ? #??????????????????????????????? | | ??????????# #??????????????????????????????? | | ??????????# """" #########??????????????????????? | | ??????????# """" ##!! !!#??????????????????????? | | ??????????# """" !##!! ]!!#??????????????????????? | | ??######### ##[= ![#?????####?????????????? | | ### ##+####### ! *%#### ###???????????? | | *%! =[=[ !l s ????????? | | = < !!% =![% %! @ [=%! g ????????? | | ! %= = [!kr !%=%= s ????????? | | ###" "##+######## #####+##* g####??????????? | | ??#" |"| "#= = ## #????%|#?#####?????????????? | | ??#"""""""# """ ## #???? #???????????????????? | | ??######### """ ## #????? #???????????????????? | | ??????????# """ ## #????? #???????????????????? | | ??????????# !! ## #??????#???????????????????? | | ??????????# !! """ ## #??????????????????????????? | | ??????????# ! """ #? #??????????????????????????? | | ?????###### """ #? #??????????????????????????? | | ?????# # #? ??????????????????????????? | | ?????# ###+######? #??????????????????????????? | | ?????# ### ####### #????#?????????????????????? | | ?????# ## #?? ?????????????????????? | | ?????# ## #? ????????????#######???? | | ?????# + """"" # ?????????????# #???? | | ?????# ## """"" + ###### #???? | | ###### ## """"" # + #???? | | ## ## # ###### #???? | | """ ####+### # #????# #???? | | """ # ################### #?#### | | """ + #??????# # | | # #??????# # | | #########+##### #??????# / | +----------------------------------------------------+ Best States ------------- Heat Dissipation 28 Energy Generation 14 Energy Capacity 265 Matter Stores 300 Matter Capacity 300 Sight Range 16 Robot Scan Range 14 Terrain Scan Range 16 Terrain Scan Density 10 Armor Coverage 150 Utility Shielding 33 Evasion (%) 55 Targeting Accuracy 6 Recoil Reduction 2 Item Schematics ----------------- None Robot Schematics ------------------ None Fabricated ------------ Nothing Alien Tech Used ----------------- None Achievements -------------- Loot Pinata More Dakka Please Challenges ------------ None Game ------ Seed ZioniteSmartbombArchive Manual? 0 Play Time 00:23:36 Cumulative 0.9 hours Start 2024.05.14 @ 17:58:29 End 2024.05.14 @ 19:42:30 Sessions 3 Manual Loads 0 Difficulty Rogue Special Mode None Game No. 3 Rogue 3 Adventurer 0 Explorer 0 Win Type - Total 0 Types 0/0/0/0/0/0/0/0/0 Lore% 1 Gallery% 2 Achievement% 3 Wizard Run 0 Options --------- Layout 0 ASCII 0 Keyboard 0 Movement Numpad Keybinds 0 Fullscreen 1 Font 24/Smallcaps Map View 76x50 Zoom Use 0% Tactical HUD 0 Map Filters NONE Filters NONE Steam 1 RUN: 1e1231a8-d14a-4a06-93e5-26c324038775